bitfinex/quotes_BTCUSD_20241117
["timestamp","ask_amount","ask_price","bid_price","bid_amount"]
[1731883510085,0.00486018,89340.0,89339.0,0.35440535]
[1731883510297,0.00786018,89340.0,89339.0,0.35640535]
[1731883510731,0.00486018,89340.0,89339.0,0.35440535]
[1731883510936,0.00486018,89340.0,89339.0,0.3991917]
[1731883511154,0.0101455,89341.0,89339.0,0.2872587]
[1731883511358,0.0101455,89341.0,89340.0,0.22099355]
[1731883511994,0.0101455,89341.0,89340.0,0.28917101]
[1731883512615,0.0101455,89341.0,89340.0,0.30017101]
[1731883513030,0.0101455,89341.0,89340.0,0.31717101]
[1731883514760,0.0101455,89341.0,89340.0,0.39757101]
[1731883514970,0.0101455,89341.0,89340.0,0.38657101]
[1731883515379,0.0101455,89341.0,89340.0,0.36957101]
[1731883515584,0.0101455,89341.0,89340.0,0.38857101]
[1731883515791,0.0101455,89341.0,89340.0,0.40957101]
[1731883516220,0.0101455,89341.0,89340.0,0.38857101]
[1731883516427,0.0101455,89341.0,89340.0,0.30139355]
[1731883516638,0.0101455,89341.0,89340.0,0.32039355]
[1731883516836,0.0101455,89341.0,89340.0,0.33439355]
[1731883520408,0.0101455,89341.0,89340.0,0.33939355]
[1731883521412,0.0101455,89341.0,89340.0,0.38509355]
[1731883521887,0.0101455,89341.0,89340.0,0.40809355]
[1731883522363,0.0008549,89355.0,89354.0,0.43269146]
[1731883522591,0.0008549,89355.0,89354.0,0.54175401]
[1731883525221,0.0008549,89355.0,89354.0,0.57175401]
[1731883525441,0.0008549,89355.0,89354.0,0.50157655]
[1731883525666,0.0008549,89355.0,89354.0,0.52957655]
[1731883529950,0.0008549,89355.0,89354.0,0.57524198]
[1731883543290,0.0008549,89355.0,89354.0,0.54724198]
[1731883543481,0.0008549,89355.0,89354.0,0.57524198]
[1731883543716,0.0008549,89355.0,89354.0,0.5832235]
[1731883543920,0.0008549,89355.0,89354.0,0.5552235]
[1731883544879,0.0008549,89355.0,89354.0,0.6112235]
[1731883547984,0.0008549,89355.0,89354.0,0.61122868]
[1731883552809,0.0008549,89355.0,89354.0,0.60324198]
[1731883553038,0.0008549,89355.0,89354.0,0.58024198]
[1731883553936,0.0008549,89355.0,89354.0,0.53454198]
[1731883554553,0.0008549,89355.0,89354.0,0.52954198]
[1731883554782,0.0008549,89355.0,89354.0,0.50154198]
[1731883555209,0.0008549,89355.0,89354.0,0.44554198]
[1731883555381,0.0008549,89355.0,89354.0,0.39464198]
[1731883555535,0.0008549,89355.0,89354.0,0.22097655]
[1731883555961,0.0008549,89355.0,89354.0,0.24897655]
[1731883556171,0.0008549,89355.0,89354.0,0.167914]
[1731883556566,0.0008549,89355.0,89354.0,0.139914]
[1731883556897,0.0008549,89355.0,89354.0,0.167914]
[1731883557099,0.0008549,89355.0,89354.0,0.139914]
[1731883557687,0.0008549,89355.0,89354.0,0.111914]
[1731883557922,0.0008549,89355.0,89354.0,0.139914]
[1731883558148,0.0008549,89355.0,89354.0,0.163914]
[1731883558369,0.0008549,89355.0,89354.0,0.139914]
[1731883558610,0.0008549,89355.0,89354.0,0.163914]
[1731883558831,0.0008549,89355.0,89354.0,0.139914]
[1731883559283,0.0008549,89355.0,89354.0,0.111914]
[1731883559523,0.0058549,89355.0,89354.0,0.138914]
[1731883559757,0.01283586,89355.0,89354.0,0.138914]
[1731883560001,0.0058549,89355.0,89354.0,0.111914]
[1731883560228,0.01284035,89355.0,89354.0,0.111914]
[1731883560443,0.01284035,89355.0,89354.0,0.152914]
[1731883560444,0.0058549,89355.0,89354.0,0.152914]
[1731883560659,0.01283557,89355.0,89354.0,0.152914]
[1731883560881,0.0058549,89355.0,89354.0,0.152914]
[1731883561104,0.01283782,89355.0,89354.0,0.152914]
[1731883561330,0.0058549,89355.0,89354.0,0.152914]
[1731883561582,0.01283782,89355.0,89354.0,0.152914]
[1731883561802,0.0058549,89355.0,89354.0,0.152914]
[1731883562019,0.01283782,89355.0,89354.0,0.152914]
[1731883562234,0.0058549,89355.0,89354.0,0.152914]
[1731883562456,0.01283782,89355.0,89354.0,0.152914]
[1731883562634,0.0058549,89355.0,89354.0,0.152914]
[1731883562813,0.01283782,89355.0,89354.0,0.152914]
[1731883562995,0.0058549,89355.0,89354.0,0.152914]
[1731883563182,0.01283782,89355.0,89354.0,0.152914]
[1731883565006,0.01283782,89355.0,89354.0,0.130914]
[1731883565208,0.01283782,89355.0,89354.0,0.111914]
[1731883565416,0.0058549,89355.0,89354.0,0.164914]
[1731883565820,0.0058549,89355.0,89354.0,0.111914]
[1731883566096,0.0058549,89355.0,89354.0,0.134914]
[1731883567677,0.0058549,89355.0,89354.0,0.154914]
[1731883569753,0.01277579,89355.0,89354.0,0.154914]
[1731883583253,0.52277579,89355.0,89354.0,0.154914]
[1731883584310,0.52277579,89355.0,89354.0,0.16291125]
[1731883584482,0.52277579,89355.0,89354.0,0.16291061]
[1731883584686,0.51777579,89355.0,89354.0,0.24151061]
[1731883584887,0.51777579,89355.0,89354.0,0.29111061]
[1731883586118,0.51777579,89355.0,89354.0,0.283114]
[1731883588464,0.52826382,89355.0,89354.0,0.39217655]
[1731883589026,0.52826382,89355.0,89354.0,0.36917655]
[1731883590561,0.52826382,89355.0,89354.0,0.39517655]
[1731883591058,0.51777579,89355.0,89354.0,0.36917655]
[1731883591239,0.52826467,89355.0,89354.0,0.39217655]
[1731883591997,0.51777579,89355.0,89354.0,0.39217655]
[1731883595197,0.51777579,89355.0,89354.0,0.36917655]
[1731883596030,0.51777579,89355.0,89354.0,0.34917655]
[1731883596430,0.51777579,89355.0,89354.0,0.37717655]
[1731883597098,0.51777579,89355.0,89354.0,0.37617655]
[1731883597251,0.51777579,89355.0,89354.0,0.40317655]
[1731883599226,0.51777579,89355.0,89354.0,0.40417655]
[1731883599364,0.51777579,89355.0,89354.0,0.53217655]
[1731883599600,0.51777579,89355.0,89354.0,0.50517655]
[1731883599974,0.51777579,89355.0,89354.0,0.53317655]
[1731883600173,0.51777579,89355.0,89354.0,0.50517655]
[1731883600582,0.51777579,89355.0,89354.0,0.56117655]
[1731883600881,0.51777579,89355.0,89354.0,0.50517655]
[1731883601100,0.51777579,89355.0,89354.0,0.47717655]
[1731883601302,0.51777579,89355.0,89354.0,0.50517655]
[1731883602303,0.51777579,89355.0,89354.0,0.53317655]
[1731883602502,0.51777579,89355.0,89354.0,0.50517655]
[1731883602701,0.51777579,89355.0,89354.0,0.47717655]
[1731883602928,0.51777579,89355.0,89354.0,0.53317655]
[1731883612396,0.49539279,89355.0,89354.0,0.53317655]
[1731883612601,0.06818706,89355.0,89354.0,0.53517655]
[1731883613199,6e-08,89355.0,89354.0,0.50717655]
[1731883613398,6e-08,89355.0,89354.0,0.47917655]
[1731883613511,6e-08,89355.0,89354.0,0.50717655]
[1731883613716,6e-08,89355.0,89354.0,0.62871983]
[1731883614129,6e-08,89355.0,89354.0,0.50717655]
[1731883614538,6e-08,89355.0,89354.0,0.53517655]
[1731883615163,6e-08,89355.0,89354.0,0.50717655]
[1731883615369,6e-08,89355.0,89354.0,0.53517655]
[1731883616398,6e-08,89355.0,89354.0,0.63484615]
[1731883617099,6e-08,89355.0,89354.0,0.63484939]
[1731883617471,6e-08,89355.0,89354.0,0.64278308]
[1731883617973,6e-08,89355.0,89354.0,0.51513726]
[1731883618124,6e-08,89355.0,89354.0,0.61478488]
[1731883618564,6e-08,89355.0,89354.0,0.63482417]
[1731883618773,6e-08,89355.0,89354.0,0.64278444]
[1731883618949,6e-08,89355.0,89354.0,0.58678444]
[1731883619153,6e-08,89355.0,89354.0,0.61478444]
[1731883619350,6e-08,89355.0,89354.0,0.53517655]
[1731883619581,6e-08,89355.0,89354.0,0.60680281]
[1731883619817,6e-08,89355.0,89354.0,0.51513719]
[1731883620028,6e-08,89355.0,89354.0,0.54313719]
[1731883620222,6e-08,89355.0,89354.0,0.51513719]
[1731883620367,6e-08,89355.0,89354.0,0.61476345]
[1731883621022,6e-08,89355.0,89354.0,0.64276345]
[1731883621833,6e-08,89355.0,89354.0,0.54313719]
[1731883622027,6e-08,89355.0,89354.0,0.61476634]
[1731883622231,6e-08,89355.0,89354.0,0.57113719]
[1731883622380,6.6e-07,89355.0,89354.0,0.51513719]
[1731883622606,6.6e-07,89355.0,89354.0,0.58331465]
[1731883622811,8e-07,89362.0,89361.0,0.345605]
[1731883623040,8e-07,89362.0,89361.0,0.72159098]
[1731883623270,8e-07,89362.0,89361.0,0.62198311]
[1731883623490,8e-07,89362.0,89361.0,0.72159098]
[1731883624173,8e-07,89362.0,89361.0,0.64998311]
[1731883624385,8e-07,89362.0,89361.0,0.64202247]
[1731883624563,8e-07,89362.0,89361.0,0.64998114]
[1731883625378,8e-07,89362.0,89361.0,0.67798114]
[1731883625826,8e-07,89362.0,89361.0,0.65588824]
[1731883625980,8e-07,89362.0,89361.0,0.7240657]
[1731883628295,8e-07,89362.0,89361.0,0.72405789]
[1731883628734,0.0017114,89372.0,89371.0,0.43847046]
[1731883628923,0.0017114,89372.0,89371.0,0.55548387]
[1731883629273,4e-07,89372.0,89371.0,0.55348387]
[1731883629465,4e-07,89372.0,89371.0,0.48530641]
[1731883629985,4e-07,89372.0,89371.0,0.51330641]
[1731883630792,4e-07,89372.0,89371.0,0.55850936]
[1731883631030,4e-07,89372.0,89371.0,0.58650936]
[1731883631245,0.04635723,89418.0,89371.0,0.58650936]
[1731883631246,0.0008549,89431.0,89426.0,0.239824]
[1731883631397,0.12345849,89434.0,89433.0,0.211815]
[1731883631601,0.0008549,89436.0,89435.0,0.005]
[1731883631827,0.0008549,89436.0,89435.0,0.239813]
[1731883633383,0.0008549,89436.0,89435.0,0.267813]
[1731883634554,0.0008549,89436.0,89435.0,0.295813]
[1731883636239,0.0008549,89436.0,89435.0,0.40487555]
[1731883637094,0.0008549,89436.0,89435.0,0.3989729]
[1731883637354,0.0008549,89436.0,89435.0,0.4269729]
[1731883637786,0.0008549,89436.0,89435.0,0.3989729]
[1731883638007,0.0008549,89436.0,89435.0,0.44504707]
[1731883638257,9e-07,89436.0,89435.0,0.63562453]
[1731883638730,9e-07,89436.0,89435.0,0.60762453]
[1731883638951,9e-07,89436.0,89435.0,0.63562453]
[1731883639190,9e-07,89436.0,89435.0,0.67212854]
[1731883639659,9e-07,89436.0,89435.0,0.67803119]
[1731883639905,0.0017102,89440.0,89439.0,0.239808]
[1731883639906,1e-07,89440.0,89439.0,0.239808]
[1731883640139,1e-07,89440.0,89439.0,0.42128361]
[1731883640386,1e-07,89440.0,89439.0,0.45155202]
[1731883640640,1e-06,89445.0,89444.0,0.005]
[1731883640917,1e-06,89445.0,89444.0,0.38560313]
[1731883641125,1e-06,89445.0,89444.0,0.38536756]
[1731883641370,1e-06,89445.0,89444.0,0.38336756]
[1731883641602,1e-06,89445.0,89444.0,0.45886756]
[1731883642060,0.03,89458.0,89457.0,0.37613992]
[1731883642260,0.03,89458.0,89457.0,0.48520247]
[1731883642562,0.03,89458.0,89457.0,0.51970648]
[1731883643536,0.1131,89491.0,89461.0,0.23978]
[1731883643780,6e-07,89462.0,89461.0,0.35107767]
[1731883643995,6e-07,89462.0,89461.0,0.38334656]
[1731883644242,0.14510036,89472.0,89471.0,0.005]
[1731883644511,0.0669,89500.0,89480.0,0.239756]
[1731883644753,0.0669,89500.0,89480.0,0.45238303]
[1731883645005,0.0669,89500.0,89489.0,0.111745]
[1731883645219,0.0669,89500.0,89489.0,0.24380755]
[1731883645448,0.0669,89500.0,89498.0,0.111734]
[1731883645917,0.1857158,89526.0,89515.0,0.223423]
[1731883645918,0.01034569,89521.0,89515.0,0.223423]
[1731883646143,0.17245276,89516.0,89515.0,0.335136]
[1731883646393,0.17245276,89516.0,89499.0,0.11129695]
[1731883646394,0.005,89521.0,89500.0,0.005]
[1731883646617,0.0669,89524.0,89519.0,0.111707]
[1731883646863,0.005,89520.0,89519.0,0.111707]
[1731883647087,0.005,89521.0,89520.0,0.335118]
[1731883647346,0.11175221,89524.0,89520.0,0.335118]
[1731883647347,0.005,89522.0,89521.0,0.111705]
[1731883647576,0.0719,89524.0,89523.0,0.111703]
[1731883647820,0.0669,89524.0,89523.0,0.111703]
[1731883648042,0.0719,89524.0,89523.0,0.111703]
[1731883648519,0.0669,89524.0,89523.0,0.111703]
[1731883648733,0.0719,89524.0,89523.0,0.111703]
[1731883649234,0.0719,89524.0,89523.0,0.113703]
[1731883649928,0.0719,89524.0,89523.0,0.115703]
[1731883650357,0.0719,89524.0,89523.0,0.004]
[1731883650676,0.0719,89524.0,89510.0,0.223437]
[1731883650677,0.005,89514.0,89501.0,0.13206255]
[1731883650902,0.01032722,89525.0,89489.0,0.20356448]
[1731883650903,0.005,89490.0,89489.0,0.04594174]
[1731883651160,0.223461,89501.0,89489.0,0.04594174]
[1731883651161,0.005,89493.0,89491.0,0.111741]
[1731883651385,0.02472722,89512.0,89491.0,0.111741]
[1731883651386,0.005,89492.0,89491.0,0.111741]
[1731883651863,0.005,89493.0,89492.0,0.111741]
[1731883652554,0.005,89492.0,89491.0,0.111743]
[1731883652788,0.005,89492.0,89491.0,0.130743]
[1731883653009,0.005,89493.0,89492.0,0.111741]
[1731883653234,0.005,89492.0,89491.0,0.111743]
[1731883653941,0.005,89492.0,89490.0,0.223488]
[1731883653942,0.007,89493.0,89490.0,0.223488]
[1731883654167,0.007,89493.0,89492.0,0.111741]
[1731883655133,0.005,89493.0,89492.0,0.111741]
[1731883655371,0.007,89493.0,89492.0,0.111741]
[1731883656324,0.009,89493.0,89492.0,0.121741]
[1731883656998,0.009,89493.0,89492.0,0.1234476]
[1731883657445,0.004,89493.0,89492.0,0.1234476]
[1731883658423,0.01437214,89493.0,89492.0,0.1234476]
[1731883658856,0.01937202,89493.0,89492.0,0.1234476]
[1731883659071,0.01437202,89493.0,89492.0,0.1234476]
[1731883659735,0.01937202,89493.0,89492.0,0.1234476]
[1731883659941,0.01437202,89493.0,89492.0,0.1234476]
[1731883660143,0.01937202,89493.0,89492.0,0.1234476]
[1731883660348,0.01437202,89493.0,89492.0,0.1234476]
[1731883660701,0.0310051,89493.0,89492.0,0.1234476]
[1731883661319,0.0360051,89493.0,89492.0,0.1234476]
[1731883661727,0.0310051,89493.0,89492.0,0.54247463]
[1731883661960,0.004,89493.0,89492.0,0.54247463]
[1731883662164,0.004,89493.0,89492.0,0.58768858]
[1731883662586,0.002,89493.0,89492.0,0.57768858]
[1731883663046,0.004,89493.0,89492.0,0.58768858]
[1731883663497,0.002,89493.0,89492.0,0.58768858]
[1731883663945,0.003,89493.0,89492.0,0.60768858]
[1731883664153,0.002,89493.0,89492.0,0.58768858]
[1731883664381,0.002,89493.0,89492.0,0.60768858]
[1731883664586,0.003,89493.0,89492.0,0.60768858]
[1731883664792,0.001,89493.0,89492.0,0.59768858]
[1731883665010,0.001,89493.0,89492.0,0.62368858]
[1731883671336,0.001,89493.0,89492.0,0.64629008]
[1731883674822,0.001,89493.0,89492.0,0.62368858]
[1731883675847,1e-06,89493.0,89492.0,0.62368858]
[1731883676459,1e-06,89493.0,89492.0,0.62568858]
[1731883680504,1e-06,89493.0,89492.0,0.62368858]
[1731883680940,1e-06,89493.0,89492.0,0.62568858]
[1731883681805,1e-06,89493.0,89492.0,0.67528858]
[1731883683619,1e-06,89493.0,89492.0,0.5697241]
[1731883683854,1e-06,89493.0,89492.0,0.4187241]
[1731883684075,1e-06,89493.0,89492.0,0.3137241]
[1731883684304,1e-06,89493.0,89492.0,0.1594476]
[1731883684747,0.062901,89493.0,89492.0,0.1594476]
[1731883684974,0.062901,89493.0,89492.0,0.1334476]
[1731883685720,0.062901,89493.0,89492.0,0.2134476]
[1731883685721,0.0629,89493.0,89492.0,0.2134476]
[1731883685941,0.0639,89493.0,89492.0,0.2324476]
[1731883686384,0.0629,89493.0,89492.0,0.2134476]
[1731883686637,0.0629,89493.0,89492.0,0.2324476]
[1731883686854,0.0639,89493.0,89492.0,0.2134476]
[1731883687078,0.0639,89493.0,89492.0,0.2374476]
[1731883687291,0.0649,89493.0,89492.0,0.2564476]
[1731883687501,0.0649,89493.0,89492.0,0.2324476]
[1731883687717,0.0649,89493.0,89492.0,0.2544476]
[1731883689617,0.0649,89493.0,89492.0,0.1544476]
[1731883689618,0.0699,89493.0,89492.0,0.1544476]
[1731883694108,0.0707534,89493.0,89492.0,0.1544476]
[1731883695640,0.1824934,89493.0,89492.0,0.0427066]
[1731883696065,0.1844934,89493.0,89492.0,0.0427066]
[1731883696499,0.1844934,89493.0,89492.0,0.0207066]
[1731883696932,0.1834934,89493.0,89492.0,0.0247066]
[1731883697163,0.22750673,89493.0,89492.0,0.0247066]
[1731883697378,0.22850673,89493.0,89492.0,0.0427066]
[1731883699977,0.16560673,89493.0,89492.0,0.0427066]
[1731883700189,0.16360673,89493.0,89492.0,0.0427066]
[1731883700401,0.0018534,89493.0,89492.0,0.0427066]
[1731883700681,0.0068534,89493.0,89492.0,0.0427066]
[1731883701408,0.1185934,89493.0,89492.0,0.0427066]
[1731883702299,0.0068534,89493.0,89492.0,0.0427066]
[1731883702519,0.1185934,89493.0,89492.0,0.0427066]
[1731883704580,0.0068534,89493.0,89492.0,0.0427066]
[1731883705516,0.0018534,89493.0,89492.0,0.36311015]
[1731883705766,0.0018534,89493.0,89492.0,0.61767463]
[1731883706003,0.0008533,89507.0,89506.0,0.116724]
[1731883706258,0.0008533,89507.0,89506.0,0.57495103]
[1731883707451,0.0008533,89507.0,89506.0,0.59695103]
[1731883708623,0.0008533,89507.0,89506.0,0.62295103]
[1731883708884,0.0008533,89507.0,89506.0,0.59295103]
[1731883713917,0.0008533,89507.0,89506.0,0.63939706]
[1731883718290,0.0008533,89507.0,89506.0,0.64025176]
[1731883720401,0.0008533,89507.0,89506.0,0.53668728]
[1731883724252,0.0008533,89507.0,89506.0,0.51068728]
[1731883724677,0.0008533,89507.0,89506.0,0.53868728]
[1731883724886,0.0008533,89507.0,89506.0,0.51068728]
[1731883725107,0.0008533,89507.0,89506.0,0.51668728]
[1731883725537,0.0008533,89507.0,89506.0,0.54468728]
[1731883725946,0.0008533,89507.0,89506.0,0.51668728]
[1731883726157,0.0008533,89507.0,89506.0,0.54468728]
[1731883726823,3e-07,89507.0,89506.0,0.54468728]
[1731883727458,0.16745276,89517.0,89516.0,0.332911]
[1731883727710,0.16745276,89517.0,89516.0,0.56853803]
[1731883728158,0.0008533,89524.0,89517.0,0.1]
[1731883728368,0.0008533,89524.0,89523.0,0.34376555]
[1731883729494,0.0008533,89524.0,89523.0,0.42666555]
[1731883729705,0.0008533,89524.0,89523.0,0.47586555]
[1731883729915,0.0008533,89524.0,89523.0,0.50386555]
[1731883731056,0.0008533,89524.0,89523.0,0.53186555]
[1731883731277,0.0008533,89524.0,89523.0,0.54940075]
[1731883731492,0.0008533,89524.0,89523.0,0.60540075]
[1731883731932,0.0008533,89524.0,89523.0,0.57740075]
[1731883732239,0.0008533,89524.0,89523.0,0.60540075]
[1731883732424,0.0008533,89524.0,89523.0,0.55601181]
[1731883732681,0.0008533,89524.0,89523.0,0.47311181]
[1731883732929,0.0008533,89524.0,89523.0,0.57667629]
[1731883733146,0.0008533,89524.0,89523.0,0.55386523]
[1731883733588,0.0008533,89524.0,89523.0,0.50833003]
[1731883733812,0.0008533,89524.0,89523.0,0.48033003]
[1731883734034,0.0008533,89524.0,89523.0,0.24876555]
[1731883734309,0.005,89519.0,89512.0,0.223431]
[1731883734536,0.11171,89517.0,89512.0,0.10906255]
[1731883734749,0.005,89519.0,89512.0,0.10906255]
[1731883734988,0.01043617,89516.0,89515.0,0.111712]
[1731883735209,0.005,89519.0,89515.0,0.111712]
[1731883735210,0.0313068,89518.0,89515.0,0.111712]
[1731883735426,0.0313068,89518.0,89512.0,0.10906255]
[1731883735427,0.01043617,89517.0,89514.0,0.223428]
[1731883735658,0.005,89519.0,89514.0,0.223428]
[1731883735659,0.005,89519.0,89516.0,0.111711]
[1731883735903,0.0104471,89518.0,89516.0,0.111711]
[1731883736101,0.0104471,89517.0,89516.0,0.111711]
[1731883737351,0.0104471,89517.0,89514.0,0.335141]
[1731883737573,0.005,89519.0,89516.0,0.025]
[1731883737799,0.01244536,89518.0,89516.0,0.025]
[1731883738045,0.01044536,89517.0,89515.0,0.113713]
[1731883738519,0.005,89519.0,89516.0,0.025]
[1731883738747,0.002,89517.0,89516.0,0.027]
[1731883738989,0.01244431,89517.0,89516.0,0.002]
[1731883739211,0.01044431,89517.0,89516.0,0.025]
[1731883740385,0.01244431,89517.0,89515.0,0.113713]
[1731883740637,0.005,89519.0,89516.0,0.025]
[1731883740878,0.005,89519.0,89516.0,0.027]
[1731883741096,0.002,89517.0,89516.0,0.027]
[1731883741562,0.002,89517.0,89516.0,0.002]
[1731883741793,0.005,89519.0,89515.0,0.137713]
[1731883742030,0.01044216,89518.0,89516.0,0.002]
[1731883742261,0.00535844,89518.0,89515.0,0.111713]
[1731883742488,0.0017092,89517.0,89515.0,0.111713]
[1731883742948,0.00535396,89516.0,89515.0,0.111713]
[1731883744331,0.00535396,89516.0,89515.0,0.137713]
[1731883744536,0.00735396,89516.0,89515.0,0.139713]
[1731883747868,0.002,89516.0,89515.0,0.139713]
[1731883748569,0.00735931,89516.0,89515.0,0.139713]
[1731883749030,0.002,89516.0,89515.0,0.139713]
[1731883754878,0.002,89516.0,89515.0,0.1405675]
[1731883758045,0.002,89516.0,89515.0,0.40073005]
[1731883758269,0.001709,89523.0,89520.0,0.223411]
[1731883758546,0.001709,89523.0,89522.0,0.236704]
[1731883758804,0.16750271,89530.0,89525.0,0.1137]
[1731883759039,0.16750271,89530.0,89525.0,0.47309628]
[1731883759256,0.16750271,89530.0,89525.0,0.47086255]
[1731883759471,0.16750271,89530.0,89525.0,0.57442703]
[1731883759679,0.16750271,89530.0,89525.0,0.57642703]
[1731883760149,0.16750271,89530.0,89525.0,0.67999151]
[1731883760358,0.16750271,89530.0,89525.0,0.72999151]
[1731883760578,0.16750271,89530.0,89525.0,0.72799151]
[1731883761483,0.16750271,89530.0,89525.0,0.72999151]
[1731883761704,0.16750271,89530.0,89525.0,0.72799151]
[1731883761919,4.995e-05,89530.0,89525.0,0.72799151]
[1731883762126,4.995e-05,89530.0,89529.0,0.211695]
[1731883762345,0.16745276,89540.0,89539.0,0.291283]
[1731883762606,0.16745276,89540.0,89539.0,0.57411003]
[1731883763050,0.16745276,89549.0,89539.0,0.57411003]
[1731883763051,0.16745276,89549.0,89547.0,0.111673]
[1731883763277,0.16745276,89549.0,89547.0,0.34730003]
[1731883763493,0.16745276,89559.0,89547.0,0.34730003]
[1731883763494,0.17245276,89559.0,89547.0,0.34730003]
[1731883763714,0.16745276,89559.0,89547.0,0.34730003]
[1731883764590,0.16745276,89568.0,89547.0,0.34730003]
[1731883764591,0.16745276,89558.0,89547.0,0.34730003]
[1731883764819,0.16745276,89558.0,89547.0,0.37130003]
[1731883765958,0.16745276,89558.0,89547.0,0.34730003]
[1731883766192,0.16745276,89558.0,89547.0,0.37430003]
[1731883766495,0.16745276,89558.0,89547.0,0.40230003]
[1731883766709,0.16745276,89558.0,89547.0,0.47530003]
[1731883766931,0.17245276,89558.0,89547.0,0.44730003]
[1731883767149,0.16745276,89558.0,89547.0,0.47530003]
[1731883767376,0.16745276,89558.0,89547.0,0.50230003]
[1731883767645,0.16745276,89558.0,89547.0,0.47530003]
[1731883768568,0.16745276,89568.0,89547.0,0.55790003]
[1731883768569,0.17245276,89568.0,89547.0,0.55790003]
[1731883768810,0.16745276,89568.0,89547.0,0.52990003]
[1731883769057,0.16745276,89568.0,89547.0,0.55690003]
[1731883769279,0.16745276,89568.0,89547.0,0.55790003]
[1731883769491,0.16745276,89568.0,89547.0,0.58490003]
[1731883769934,0.16745276,89568.0,89547.0,0.60231172]
[1731883769935,0.005,89566.0,89547.0,0.60231172]
[1731883770146,0.005,89566.0,89547.0,0.60331172]
[1731883770340,0.16745276,89568.0,89547.0,0.65171172]
[1731883770341,0.17245276,89568.0,89547.0,0.65171172]
[1731883770547,0.16745276,89568.0,89547.0,0.65071172]
[1731883770756,0.005,89567.0,89547.0,0.65071172]
[1731883770967,0.16745276,89568.0,89547.0,0.65071172]
[1731883771186,0.16745276,89566.0,89557.0,0.0759]
[1731883771392,0.16745276,89566.0,89565.0,0.11165]
[1731883771393,0.17245276,89566.0,89565.0,0.11165]
[1731883771614,0.17245276,89566.0,89565.0,0.13465]
[1731883771830,0.005,89566.0,89565.0,0.13465]
[1731883772714,0.005,89566.0,89565.0,0.16265]
[1731883773138,0.005,89566.0,89565.0,0.13965]
[1731883773794,0.005,89566.0,89565.0,0.16665]
[1731883779303,0.0067082,89566.0,89565.0,0.16665]
[1731883781028,0.0117082,89566.0,89565.0,0.055]
[1731883781467,0.35151975,89566.0,89565.0,0.055]
[1731883781712,0.35151975,89566.0,89523.0,0.16745276]
[1731883781713,0.005,89524.0,89523.0,0.16745276]
[1731883782201,0.005,89523.0,89521.0,0.111705]
[1731883782445,0.005,89523.0,89522.0,0.111704]
[1731883782919,0.01,89523.0,89522.0,0.111704]
[1731883783603,0.01,89523.0,89521.0,0.032]
[1731883783850,0.01,89523.0,89506.0,0.0789547]
[1731883783851,0.005,89522.0,89516.0,0.223421]
[1731883784089,0.005,89520.0,89516.0,0.223421]
[1731883784340,0.005,89520.0,89519.0,0.111708]
[1731883786019,0.007,89520.0,89519.0,0.111708]
[1731883786482,0.008,89520.0,89519.0,0.29887055]
[1731883787631,0.003,89520.0,89519.0,0.29887055]
[1731883788088,0.001,89520.0,89519.0,0.29887055]
[1731883788347,0.003,89520.0,89519.0,0.29887055]
[1731883788570,0.002,89520.0,89519.0,0.39887055]
[1731883788797,0.005,89523.0,89522.0,0.111704]
[1731883789022,0.005,89523.0,89522.0,0.10906255]
[1731883789478,0.16745276,89530.0,89522.0,0.10906255]
[1731883789479,0.16745276,89530.0,89523.0,0.1]
[1731883789772,0.005,89527.0,89526.0,0.111699]
[1731883790000,0.005,89527.0,89526.0,0.22076155]
[1731883790885,0.005,89536.0,89535.0,0.111688]
[1731883791099,0.0606,89565.0,89535.0,0.111688]
[1731883791100,0.16745276,89540.0,89539.0,0.234683]
[1731883791321,0.005,89558.0,89549.0,0.11167]
[1731883791556,0.17245276,89559.0,89549.0,0.37003255]
[1731883791987,0.17416096,89559.0,89558.0,0.111659]
[1731883792445,0.0067082,89559.0,89558.0,0.111659]
[1731883792870,0.0117082,89559.0,89558.0,0.111659]
[1731883793278,0.0127082,89559.0,89558.0,0.111659]
[1731883794640,0.0127082,89559.0,89558.0,0.119659]
[1731883799910,0.1293662,89559.0,89558.0,0.008]
[1731883800151,0.1293662,89559.0,89525.0,0.0498]
[1731883800152,0.005,89534.0,89527.0,0.223396]
[1731883800371,0.005,89534.0,89533.0,0.16745276]
[1731883800372,0.01,89534.0,89533.0,0.16745276]
[1731883800598,0.01,89534.0,89526.0,0.10991665]
[1731883800599,0.01,89534.0,89529.0,0.111694]
[1731883800852,0.01,89534.0,89526.0,0.10991665]
[1731883801095,0.005,89531.0,89530.0,0.111693]
[1731883802960,0.012,89531.0,89530.0,0.111693]
[1731883803396,0.012,89531.0,89530.0,0.118693]
[1731883806426,0.012,89531.0,89530.0,0.007]
[1731883806640,0.012,89531.0,89530.0,0.118694]
[1731883809772,0.005,89531.0,89530.0,0.118694]
[1731883809976,0.011,89531.0,89530.0,0.111694]
[1731883810190,0.011,89531.0,89528.0,0.223393]
[1731883810191,0.01,89529.0,89528.0,0.111695]
[1731883811923,0.005,89527.0,89526.0,0.1125531]
[1731883813174,0.011,89527.0,89526.0,0.1125531]
[1731883813589,0.011,89527.0,89526.0,0.1205531]
[1731883815141,0.006,89527.0,89526.0,0.24971665]
[1731883815388,0.006,89527.0,89526.0,0.58798013]
[1731883816222,0.006,89527.0,89526.0,0.57998013]
[1731883816428,0.006,89527.0,89526.0,0.60398013]
[1731883816637,0.005,89538.0,89537.0,0.211685]
[1731883816850,0.005,89538.0,89537.0,0.32074755]
[1731883818091,0.005,89538.0,89537.0,0.34274755]
[1731883818942,0.007,89538.0,89537.0,0.34574755]
[1731883822000,0.007,89538.0,89537.0,0.24574755]
[1731883828448,0.007,89538.0,89537.0,0.32824755]
[1731883831321,0.007,89538.0,89537.0,0.136685]
[1731883840003,0.007,89538.0,89537.0,0.135548]
[1731883840833,0.007,89538.0,89537.0,0.1364022]
[1731883863455,0.007,89538.0,89537.0,0.39716475]
[1731883865020,0.0087098,89538.0,89537.0,0.39716475]
[1731883868829,0.0087098,89538.0,89537.0,0.44188477]
[1731883869878,0.0087098,89538.0,89537.0,0.39716475]
[1731883881159,0.0087098,89538.0,89537.0,0.37416475]
[1731883884804,0.0087098,89538.0,89537.0,0.2651022]
[1731883897867,0.0087098,89538.0,89537.0,0.3651022]